bitfinex-derivatives/quotes_BNBF0:USTF0_20250330
["timestamp","ask_amount","ask_price","bid_price","bid_amount"]
[1743356952523,4.04525891,600.0,598.77,0.33401807]
[1743356952721,4.04525891,599.99,598.77,0.33401807]
[1743356952923,4.04525891,599.98,598.77,0.33401807]
[1743356953124,1.55610893,599.97,598.78,0.2902806]
[1743356953423,4.87647905,599.96,598.78,0.2902806]
[1743356953621,1.55471848,599.95,598.78,0.2902806]
[1743356953924,1.55471848,599.94,598.79,0.33400691]
[1743356954124,3.32176057,599.95,598.79,0.33400691]
[1743356954324,1.55386162,599.94,598.87,2.5305137]
[1743356954524,1.27824498,599.94,598.88,0.33395671]
[1743356955424,1.27824498,599.93,598.88,0.33395671]
[1743356956220,2.04351559,600.06,598.88,0.33395671]
[1743356957425,1.375,600.05,598.88,0.33395671]
[1743356967027,1.375,600.05,598.94,2.5305137]
[1743356967432,1.559,600.04,598.94,2.5305137]
[1743356968329,1.559,600.04,598.95,2.5305137]
[1743356969033,2.83169402,600.04,598.95,2.5305137]
[1743356969232,4.38169709,600.04,598.95,2.5305137]
[1743356969633,4.7150082,600.04,598.95,2.5305137]
[1743356969833,4.7150082,600.04,598.88,0.33395671]
[1743356970029,1.56297947,600.03,598.9,0.29028545]
[1743356970433,3.11298254,600.03,598.9,0.29028545]
[1743356970829,1.27269402,600.02,598.9,0.29028545]
[1743356971430,0.29028545,600.03,598.9,0.29028545]
[1743356972936,3.16500513,600.04,598.88,0.33395671]
[1743356973328,4.71248012,600.04,598.88,0.33395671]
[1743356973529,1.89231111,600.04,598.88,0.33395671]
[1743356973930,1.27269402,600.03,598.88,0.33395671]
[1743356974231,1.56304607,600.03,598.89,0.29035205]
[1743356974427,0.29035205,600.03,598.89,0.29035205]
[1743356975232,1.56304607,600.03,598.89,0.29035205]
[1743356975431,3.11053815,600.03,598.89,0.29035205]
[1743356975937,2.8201861,600.03,598.88,0.33395671]
[1743356976236,1.27269402,600.03,598.88,0.33395671]
[1743356977131,0.29036417,600.02,598.89,0.29036417]
[1743356978237,1.54702468,600.01,598.89,0.29036417]
[1743356978437,1.54702468,600.0,598.89,0.29036417]
[1743356978630,1.54702468,599.99,598.89,0.29036417]
[1743356978830,1.54702468,599.98,598.88,0.33395671]
[1743356979030,1.54702468,599.97,598.89,0.29029998]
[1743356979235,1.54702468,599.96,598.89,0.29029998]
[1743356979435,1.54702468,599.95,598.89,0.29029998]
[1743356979630,1.371,599.95,598.89,0.29029998]
[1743356980232,2.91802468,599.95,598.89,0.29029998]
[1743356980435,1.27269402,599.94,598.89,0.29029998]
[1743356981339,1.27269402,599.93,598.89,0.29029998]
[1743356981740,1.27269402,599.93,598.88,0.33395671]
[1743356982239,1.27269402,599.92,598.89,0.29029513]
[1743356982637,1.27269402,599.91,598.89,0.29029513]
[1743356983539,1.371,599.95,598.89,0.29029513]
[1743356983540,1.27269402,599.9,598.89,0.29029513]
[1743356984037,1.27269402,599.89,598.89,0.29029513]
[1743356984735,1.27269402,599.89,598.88,0.33395671]
[1743356984941,1.27269402,599.93,598.88,0.33395671]
[1743356985543,1.27269402,599.92,598.88,0.33395671]
[1743356985934,1.27269402,599.91,598.88,0.33395671]
[1743356986135,1.27269402,599.91,598.89,0.29030724]
[1743356986339,1.195,599.9,598.89,0.29030724]
[1743356987941,1.195,599.9,598.88,0.33395671]
[1743356989049,1.32,599.89,598.88,0.33395671]
[1743356989250,1.32,599.89,598.89,0.29029755]
[1743356990052,1.471,599.88,598.89,0.29029755]
[1743356990845,1.471,599.88,598.88,0.33395671]
[1743356992147,1.471,599.88,598.89,0.29033267]
[1743356993646,1.471,599.88,598.88,0.33395671]
[1743356994053,1.471,599.88,598.89,0.29029634]
[1743356999659,3.02179857,599.88,598.99,2.5305137]
[1743357000062,1.27278508,599.87,598.99,2.5305137]
[1743357000659,1.27278508,599.86,598.99,2.5305137]
[1743357000857,1.27278508,599.86,598.88,0.33395671]
[1743357001062,1.27278508,599.86,598.93,0.29031087]
[1743357001462,1.27278508,599.87,598.93,0.29031087]
[1743357002264,1.27278508,599.86,598.93,0.29031087]
[1743357002865,1.27278508,599.85,598.93,0.29031087]
[1743357003360,1.27278508,599.84,598.93,0.29031087]
[1743357003564,2.63978508,599.84,598.93,0.29031087]
[1743357003763,1.27278508,599.83,598.93,0.29031087]
[1743357004661,1.27278508,599.82,598.93,0.29031087]
[1743357004965,1.27278508,599.81,598.93,0.29031087]
[1743357005561,1.27278508,599.8,598.93,0.29031087]
[1743357005962,1.367,599.84,598.88,0.33395671]
[1743357006660,1.27502732,599.83,598.88,0.33395671]
[1743357007062,2.8280376,599.83,598.88,0.33395671]
[1743357007264,1.27502732,599.82,598.89,0.29035932]
[1743357007862,1.27502732,599.81,598.89,0.29035932]
[1743357008663,2.8280376,599.8,598.89,0.29035932]
[1743357008965,1.55301028,599.79,598.88,0.33395671]
[1743357009164,1.55301028,599.78,598.89,0.29033025]
[1743357009366,1.55301028,599.77,598.89,0.29033025]
[1743357009567,1.367,599.84,598.89,0.29033025]
[1743357009869,1.5540691,599.83,598.89,0.29033025]
[1743357010068,1.5540691,599.82,598.89,0.29033025]
[1743357010267,1.5540691,599.81,598.89,0.29033025]
[1743357010571,1.5540691,599.8,598.89,0.29033025]
[1743357010867,3.31838432,599.82,598.89,0.29033025]
[1743357011067,1.55449908,599.81,598.89,0.29033025]
[1743357011264,3.31838432,599.82,598.89,0.29033025]
[1743357011568,2.83139873,599.81,598.89,0.29033025]
[1743357011867,1.27630166,599.8,598.88,0.33395671]
[1743357012070,1.27630166,599.8,598.89,0.29030482]
[1743357012368,1.27630166,599.79,598.89,0.29030482]
[1743357012770,1.622,599.78,598.89,0.29030482]
[1743357013163,2.89830166,599.78,598.89,0.29030482]
[1743357013569,1.622,599.78,598.89,0.29030482]
[1743357014866,1.622,599.78,598.88,0.33395671]
[1743357015366,1.622,599.78,598.89,0.29030845]
[1743357016467,1.622,599.78,598.9,0.33394556]
[1743357018579,1.622,599.78,598.96,2.5305137]
[1743357018781,1.622,599.78,598.97,0.33390653]
[1743357022176,1.622,599.78,599.02,2.5305137]
[1743357024180,1.622,599.78,599.05,2.5305137]
[1743357025885,1.622,599.78,598.97,0.62416777]
[1743357026787,1.622,599.78,598.97,0.33390653]
[1743357027588,1.673,599.77,598.97,0.33390653]
[1743357027990,1.673,599.77,598.97,0.62420772]
[1743357029792,1.673,599.77,598.97,0.33390653]
[1743357030392,1.673,599.77,598.97,0.6242174]
[1743357032898,1.673,599.77,598.97,0.33390653]
[1743357033094,1.673,599.77,598.97,0.6242174]
[1743357034198,1.783,599.76,598.97,0.6242174]
[1743357035798,1.783,599.76,598.97,0.33390653]
[1743357036298,1.36,599.75,598.97,0.62419803]
[1743357036796,1.36,599.75,598.97,3.15471173]
[1743357038199,1.519,599.74,598.98,2.5305137]
[1743357041501,1.519,599.74,598.97,0.62419319]
[1743357041801,1.519,599.74,598.97,0.33390653]
[1743357042195,1.519,599.74,598.97,0.62420893]
[1743357044801,1.519,599.74,598.97,0.33390653]
[1743357045204,1.519,599.74,598.97,0.6241944]
[1743357047800,1.519,599.74,598.97,0.33390653]
[1743357048404,1.519,599.74,598.97,0.6241944]
[1743357050911,1.519,599.74,598.97,0.33390653]
[1743357052206,1.36,599.75,598.97,0.6242174]
[1743357053813,1.36,599.75,598.97,0.33390653]
[1743357054214,1.36,599.75,598.97,0.62419319]
[1743357055810,1.669,599.74,598.97,0.62419319]
[1743357056517,1.669,599.74,598.98,2.5305137]
[1743357059518,1.669,599.74,599.11,2.5305137]
[1743357061318,1.354,599.73,599.11,2.5305137]
[1743357062012,1.57,599.72,599.11,2.5305137]
[1743357062619,1.57,599.72,599.14,2.5305137]
[1743357064017,1.57,599.72,599.07,0.29031572]
[1743357068420,1.53978229,599.71,599.07,0.29031572]
[1743357068621,1.53978229,599.7,599.07,0.29031572]
[1743357068821,1.53978229,599.69,598.97,0.33390653]
[1743357069018,1.53978229,599.68,598.97,0.33390653]
[1743357069321,1.57,599.72,599.06,0.290346]
[1743357069513,1.53958385,599.71,598.97,0.33390653]
[1743357069714,1.26104878,599.67,598.97,0.33390653]
[1743357069917,1.53958385,599.66,598.61,2.5305137]
[1743357070118,1.53958385,599.65,598.61,2.5305137]
[1743357070319,1.26104878,599.65,598.61,2.5305137]
[1743357070818,1.26104878,599.65,598.62,0.29040778]
[1743357071021,1.57,599.72,598.63,0.33409618]
[1743357071221,1.53922079,599.71,598.63,0.33409618]
[1743357071415,1.57,599.72,598.63,0.33409618]
[1743357071416,1.53922079,599.7,598.63,0.33409618]
[1743357071615,1.53922079,599.69,598.63,0.33409618]
[1743357071818,1.53922079,599.68,598.63,0.33409618]
[1743357072018,1.26056732,599.68,598.63,0.33409618]
[1743357072615,1.26056732,599.67,598.63,0.33409618]
[1743357073321,1.26056732,599.66,598.63,0.33409618]
[1743357073823,1.697,599.69,598.63,0.33409618]
[1743357074017,1.26011122,599.68,598.63,0.33409618]
[1743357074216,1.53818688,599.67,598.63,0.33409618]
[1743357074415,1.26011122,599.68,598.63,0.33409618]
[1743357074614,1.53821681,599.67,598.63,0.33409618]
[1743357074818,1.26011122,599.67,598.63,0.33409618]
[1743357075020,1.53822109,599.66,598.63,0.33409618]
[1743357075319,1.53822109,599.65,598.67,2.5305137]
[1743357075516,1.53822109,599.64,598.67,2.5305137]
[1743357075822,1.26011122,599.66,598.67,2.5305137]
[1743357076023,1.26011122,599.63,598.67,2.5305137]
[1743357076423,1.351,599.62,598.67,2.5305137]
[1743357076624,1.351,599.62,598.63,0.33409618]
[1743357087539,1.25751013,599.67,598.63,0.33409618]
[1743357088537,1.697,599.69,598.63,0.33409618]
[1743357088738,1.197,599.66,598.63,0.33409618]
[1743357089541,1.565,599.65,598.63,0.33409618]
[1743357090942,1.348,599.64,598.63,0.33409618]
[1743357105049,1.348,599.64,598.65,2.5305137]
[1743357105251,1.348,599.64,598.66,0.33407944]
[1743357106347,1.348,599.64,598.67,2.5305137]
[1743357106545,1.348,599.64,598.68,0.33406828]
[1743357107453,1.348,599.64,598.86,2.5305137]
[1743357107756,1.348,599.64,598.86,2.86448157]
[1743357108053,1.348,599.64,598.87,0.33396229]
[1743357108755,1.348,599.64,598.96,2.5305137]
[1743357109957,1.348,599.64,598.91,2.5305137]
[1743357110254,1.229,599.63,598.92,0.33393441]
[1743357111056,1.229,599.63,598.92,2.86444811]
[1743357112155,1.229,599.63,598.92,0.33393441]
[1743357117860,1.342,599.62,598.92,0.33393441]
[1743357121263,1.125,599.61,598.92,0.33393441]
[1743357122068,1.306,599.6,598.92,0.33393441]
[1743357133178,1.339,599.59,598.92,0.33393441]
[1743357138479,1.339,599.59,599.06,2.5305137]
[1743357139282,1.339,599.59,599.07,0.3338508]
[1743357139878,1.339,599.59,599.08,2.5305137]
[1743357140283,1.819,599.58,599.08,2.5305137]
[1743357140585,1.819,599.58,599.09,0.33383965]
[1743357142187,1.819,599.58,599.1,2.5305137]
[1743357143286,1.819,599.58,599.11,0.33382851]
[1743357143682,1.819,599.58,599.14,2.5305137]
[1743357143886,1.819,599.58,599.15,0.33380622]
[1743357148187,3.089,599.58,599.15,0.33380622]
[1743357150686,4.258,599.58,599.15,0.33380622]
[1743357164104,5.755,599.58,599.15,0.33380622]
[1743357164998,5.755,599.58,599.24,2.5305137]
[1743357166898,5.755,599.58,599.22,2.5305137]
[1743357169303,5.755,599.58,599.15,0.33380622]
[1743357176214,5.755,599.58,599.29,2.5305137]
[1743357176413,2.767,599.58,599.29,2.5305137]
[1743357177807,2.767,599.58,599.31,2.5305137]
[1743357179312,2.767,599.58,599.3,2.5305137]
[1743357180315,2.767,599.58,599.27,2.5305137]
[1743357181715,2.767,599.58,599.26,2.5305137]
[1743357182913,2.767,599.58,599.4,2.5305137]
[1743357184513,2.767,599.58,599.3,2.5305137]
[1743357186013,2.767,599.58,599.38,2.5305137]
[1743357187215,2.767,599.58,599.39,2.5305137]
[1743357189019,2.498,599.62,599.39,2.5305137]
[1743357189220,2.498,599.62,599.47,2.5305137]
[1743357190423,2.498,599.62,599.41,2.5305137]
[1743357192331,2.498,599.62,599.39,2.5305137]
[1743357193731,2.498,599.62,599.37,0.29018136]
[1743357194933,2.498,599.62,599.32,2.5305137]
[1743357195130,2.498,599.62,599.37,0.29018862]
[1743357197938,2.498,599.62,599.33,2.5305137]
[1743357198137,2.498,599.62,599.37,0.29018862]
[1743357199742,2.498,599.62,599.43,2.5305137]
[1743357201137,2.498,599.62,599.45,2.5305137]
[1743357202742,2.498,599.62,599.43,2.5305137]
[1743357204444,2.498,599.62,599.51,2.5305137]
[1743357204744,0.67289904,599.62,599.51,2.5305137]
[1743357204944,1.795,600.31,599.51,2.5305137]
[1743357207242,1.795,600.31,599.15,0.33380622]
[1743357207243,1.795,600.31,599.4,2.5305137]
[1743357208248,1.795,600.31,599.41,0.29007977]
[1743357209049,1.795,600.31,599.41,2.82059347]
[1743357210044,1.795,600.31,599.41,2.5305137]
[1743357210454,1.795,600.31,599.41,2.82059226]
[1743357211150,4.09432042,600.3,599.41,2.82059226]
[1743357211347,4.09432042,600.29,599.49,2.5305137]
[1743357211551,1.57473862,600.28,599.49,2.5305137]
[1743357211752,1.57473862,600.27,599.49,2.5305137]
[1743357211954,1.57473862,600.26,599.49,2.5305137]
[1743357212150,1.57473862,600.25,599.49,2.5305137]
[1743357212349,1.57473862,600.24,599.49,2.5305137]
[1743357212548,1.57473862,600.23,599.41,0.29007856]
[1743357212749,1.29189829,600.25,599.41,0.29007856]
[1743357212952,1.29189829,600.23,599.35,2.5305137]
[1743357213149,1.57450946,600.22,599.35,2.5305137]
[1743357213457,1.29189829,600.22,599.41,0.29008098]
[1743357214455,1.29189829,600.21,599.41,0.29008098]
[1743357214858,1.29189829,600.2,599.41,0.29008098]
[1743357215451,1.795,600.31,599.41,0.29008098]
[1743357215652,4.09279335,600.3,599.41,0.29008098]
[1743357215856,1.57415129,600.29,599.41,0.29008098]
[1743357216058,1.57415129,600.28,599.41,0.29008098]
[1743357216260,1.57415129,600.27,599.41,0.29008098]
[1743357216458,1.57415129,600.26,599.41,0.29008098]
[1743357216653,1.57415129,600.25,599.41,0.29008098]
[1743357216857,1.57415129,600.24,599.41,0.29008098]
[1743357217060,1.57415129,600.23,599.41,0.29008098]
[1743357217259,1.57415129,600.22,599.41,0.29008098]
[1743357217555,1.57415129,600.21,599.41,0.29008098]
[1743357217763,1.29151145,600.23,599.41,0.29008098]
[1743357217961,1.29151145,600.2,599.41,0.29008098]
[1743357218964,1.29151145,600.2,599.27,2.5305137]
[1743357219158,1.29151145,600.19,599.28,0.33373381]
[1743357219361,1.29151145,600.19,599.41,0.29011121]
[1743357219561,1.311,600.2,599.28,0.33373381]
[1743357220465,1.311,600.2,599.29,0.29011]
[1743357220665,1.311,600.2,599.3,0.33372267]
[1743357222665,1.311,600.2,599.36,2.5305137]
[1743357223466,2.518,600.2,599.36,2.5305137]
[1743357223666,2.518,600.2,599.3,0.33372267]
[1743357223667,2.518,600.2,599.37,2.5305137]
[1743357225470,2.518,600.2,599.36,2.5305137]
[1743357228270,2.518,600.2,599.55,2.5305137]
[1743357229662,2.518,600.2,599.42,2.5305137]
[1743357229663,2.518,600.2,599.56,2.5305137]
[1743357231264,2.518,600.2,599.59,2.5305137]
[1743357233680,2.518,600.2,599.58,2.5305137]
[1743357234781,2.518,600.2,599.6,2.5305137]
[1743357236481,2.518,600.2,599.5,2.5305137]
[1743357238181,2.518,600.2,599.51,2.5305137]
[1743357239192,2.518,600.2,599.5,2.5305137]
[1743357242187,2.518,600.2,599.49,0.29007856]
[1743357242384,3.19,600.2,599.49,0.29007856]
[1743357242985,3.19,600.2,599.39,2.5305137]
[1743357243380,3.19,600.2,599.49,0.29009186]
[1743357243584,4.607,600.2,599.4,2.5305137]
[1743357244285,4.607,600.2,599.41,0.29009065]
[1743357246088,4.607,600.2,599.3,0.33372267]
[1743357246285,4.607,600.2,599.41,0.29009065]
[1743357246785,4.607,600.2,599.3,0.33372267]
[1743357247381,4.607,600.2,599.31,0.29011605]
[1743357247583,1.5599832,600.19,599.31,0.29011605]
[1743357247779,4.05619055,600.18,599.31,0.29011605]
[1743357247984,4.05619055,600.17,599.31,0.29011605]
[1743357248185,1.5599832,600.16,599.31,0.29011605]
[1743357248486,1.55951549,600.15,599.31,0.29011605]
[1743357248683,4.02837131,600.14,599.31,0.29011605]
[1743357248887,4.02837131,600.13,599.3,2.86423637]
[1743357249086,1.55951549,600.12,599.3,2.86423637]
[1743357249287,1.55951549,600.11,599.31,0.29015354]
[1743357249482,1.55951549,600.1,599.31,0.29015354]
[1743357249679,1.55951549,600.09,599.31,0.29015354]
[1743357249885,3.31949726,600.13,599.31,0.29015354]
[1743357250187,1.27692818,600.08,599.31,0.29015354]
[1743357251088,1.27692818,600.07,599.31,0.29015354]
[1743357251488,2.83292818,600.07,599.31,0.29015354]
[1743357251988,1.27692818,600.06,599.3,0.33372267]
[1743357252393,1.27692818,600.06,599.31,0.29016685]
[1743357252586,1.27692818,600.05,599.31,0.29016685]
[1743357253485,1.556,600.07,599.31,0.29016685]
[1743357254292,1.27493036,600.06,599.31,0.29016685]
[1743357254990,1.556,600.07,599.3,0.33372267]
[1743357256390,1.556,600.07,599.31,0.29019709]
[1743357258092,1.556,600.07,599.3,0.33372267]
[1743357258391,1.556,600.07,599.31,0.29017168]
[1743357260894,1.556,600.07,599.3,0.33372267]
[1743357262393,1.556,600.07,599.31,0.2902225]
[1743357264100,1.556,600.07,599.3,0.33372267]
[1743357264502,1.556,600.07,599.31,0.29017894]
[1743357267007,1.556,600.07,599.3,0.33372267]
[1743357267200,2.231,600.07,599.3,0.33372267]
[1743357268405,2.231,600.07,599.31,0.29021887]
[1743357269906,2.231,600.07,599.3,0.33372267]
[1743357270202,2.231,600.07,599.31,0.29015475]
[1743357273002,2.231,600.07,599.3,0.33372267]
[1743357273511,2.231,600.07,599.31,0.29014991]
[1743357275904,3.97,600.07,599.31,0.29014991]
[1743357276110,3.97,600.07,599.3,0.33372267]
[1743357277206,3.97,600.07,599.31,0.29015717]
[1743357278813,5.37,600.07,599.31,0.29015717]
[1743357279007,5.37,600.07,599.3,0.33372267]
[1743357280311,5.37,600.07,599.31,0.29015596]
[1743357282016,5.37,600.07,599.3,0.33372267]
[1743357283412,5.37,600.07,599.31,0.29016927]
[1743357285007,5.37,600.07,599.3,0.33372267]
[1743357285212,5.37,600.07,599.31,0.29013056]
[1743357288115,5.37,600.07,599.3,0.33372267]
[1743357288316,5.37,600.07,599.31,0.29012814]
[1743357290914,5.37,600.07,599.3,0.33372267]
[1743357291320,5.37,600.07,599.31,0.29012814]
[1743357294123,5.37,600.07,599.3,0.33372267]
[1743357294321,5.37,600.07,599.31,0.29012814]
[1743357296524,5.37,600.07,599.34,2.5305137]
[1743357298123,5.37,600.07,599.31,2.5305137]
[1743357298525,5.37,600.07,599.32,0.2901233]
[1743357299320,5.37,600.07,599.37,2.5305137]
[1743357301428,5.37,600.07,599.38,2.5305137]
[1743357303527,5.37,600.07,599.36,0.29011847]
[1743357305931,5.37,600.07,599.3,0.33372267]
[1743357307336,5.37,600.07,599.31,0.29022613]
[1743357309039,5.37,600.07,599.3,0.33372267]
[1743357310242,5.37,600.07,599.31,0.29020556]
[1743357311935,5.37,600.07,599.3,0.33372267]
[1743357312343,5.37,600.07,599.31,0.29021161]
[1743357314941,5.37,600.07,599.3,0.33372267]
[1743357316240,5.37,600.07,599.31,0.29020072]
[1743357317953,5.37,600.07,599.3,0.33372267]
[1743357319256,5.37,600.07,599.31,0.29014023]
[1743357320951,5.37,600.07,599.3,0.33372267]
[1743357321356,5.37,600.07,599.31,0.29013419]
[1743357323955,5.37,600.07,599.3,0.33372267]
[1743357324350,5.37,600.07,599.31,0.29017048]
[1743357328055,5.37,600.07,599.32,0.33371153]
[1743357342965,5.37,600.07,599.38,2.5305137]
[1743357343166,5.37,600.07,599.39,0.33367256]
[1743357344568,5.37,600.07,599.39,2.86418626]
[1743357345466,5.37,600.07,599.4,2.5305137]
[1743357345665,5.37,600.07,599.41,0.33366143]
[1743357347567,5.37,600.07,599.51,2.5305137]
[1743357349170,5.37,600.07,599.41,0.6237134]
[1743357350878,5.37,600.07,599.42,2.5305137]
[1743357351075,5.37,600.07,599.43,0.3336503]
[1743357351675,5.37,600.07,599.54,2.5305137]
[1743357352974,5.37,600.07,599.55,2.5305137]
[1743357354380,5.37,600.07,599.56,2.5305137]
[1743357355278,5.37,600.07,599.48,2.5305137]
[1743357356978,5.37,600.07,599.49,2.5305137]
[1743357358276,5.37,600.07,599.51,2.5305137]
[1743357359883,5.37,600.07,599.48,0.29005439]
[1743357359884,5.37,600.07,599.53,2.5305137]
[1743357361287,5.37,600.07,599.49,0.29005197]
[1743357361288,5.37,600.07,599.56,2.5305137]
[1743357362492,5.37,600.07,599.61,2.5305137]
[1743357364293,5.37,600.07,599.7,2.5305137]
[1743357365694,5.37,600.07,599.77,2.5305137]
[1743357366090,1.65618602,600.86,599.77,2.5305137]
[1743357366291,1.53252122,600.85,599.77,2.5305137]
[1743357366492,1.53252122,600.84,599.77,2.5305137]
[1743357366690,1.86539407,600.83,599.77,2.5305137]
[1743357366890,1.86539961,600.82,599.77,2.5305137]
[1743357367090,1.86540516,600.81,599.77,2.5305137]
[1743357367295,1.8654107,600.8,599.77,2.5305137]
[1743357367495,0.33289502,600.79,599.77,2.5305137]
[1743357367796,1.60076115,600.79,599.77,2.5305137]
[1743357368187,3.18196961,600.79,599.77,2.5305137]
[1743357368389,0.683,600.78,599.77,2.5305137]
[1743357368695,3.46177223,600.77,599.77,2.5305137]
[1743357368893,1.86577193,600.76,599.77,2.5305137]
[1743357369089,0.33291718,600.75,599.77,2.5305137]
[1743357369295,1.97591718,600.75,599.77,2.5305137]
[1743357369492,1.26786613,600.74,599.77,2.5305137]
[1743357369896,3.3797944,600.73,599.77,2.5305137]
[1743357370097,1.53286029,600.72,599.77,2.5305137]
[1743357370295,2.80072642,600.72,599.77,2.5305137]
[1743357370603,0.33293935,600.71,599.77,2.5305137]
[1743357370793,0.33293935,600.71,599.8,2.5305137]
[1743357371398,1.60080548,600.71,599.8,2.5305137]
[1743357371799,3.13366577,600.71,599.8,2.5305137]
[1743357371995,1.26786613,600.7,599.8,2.5305137]
[1743357372498,1.26786613,600.7,599.82,2.5305137]
[1743357372701,1.60081102,600.7,599.82,2.5305137]
[1743357372904,1.53286029,600.69,599.82,2.5305137]
[1743357373099,1.53286029,600.68,599.82,2.5305137]
[1743357373394,1.53286029,600.67,599.82,2.5305137]
[1743357373594,1.53286029,600.66,599.82,2.5305137]
[1743357373798,1.53286029,600.65,599.82,2.5305137]
[1743357374000,1.53286029,600.64,599.43,2.864164]
[1743357374198,1.53286029,600.65,599.43,2.864164]
[1743357374399,1.86583844,600.64,599.43,2.864164]
[1743357374594,2.80072642,600.63,599.43,2.864164]
[1743357374791,0.33298924,600.62,599.43,2.864164]
[1743357375491,0.33298924,600.62,599.43,0.3336503]
[1743357375996,1.26786613,600.61,599.43,0.3336503]
[1743357376598,3.99383549,600.6,599.43,0.3336503]
[1743357376798,4.91102555,600.59,599.43,0.3336503]
[1743357376999,4.91102555,600.58,599.43,0.3336503]
[1743357377296,4.91109738,600.57,599.43,0.3336503]
[1743357377500,3.99383549,600.56,599.43,0.3336503]
[1743357377701,3.99383549,600.55,599.43,0.3336503]
[1743357377897,3.99383549,600.54,599.43,0.3336503]
[1743357378097,3.99383549,600.53,599.43,0.3336503]
[1743357378397,7.29712444,600.52,599.43,0.3336503]
[1743357378700,1.53584062,600.51,599.43,0.3336503]
[1743357378900,1.53584062,600.5,599.43,0.3336503]
[1743357379200,1.53584062,600.49,599.43,0.3336503]
[1743357379401,1.53584062,600.48,599.43,0.3336503]
[1743357379701,1.53584062,600.47,599.44,0.290029]
[1743357379901,1.53584062,600.46,599.45,0.33363916]
[1743357380101,1.53584062,600.45,599.45,0.33363916]
[1743357380294,1.53584062,600.44,599.45,0.33363916]
[1743357380494,1.53584062,600.43,599.45,0.33363916]
[1743357380696,1.53584062,600.42,599.45,0.33363916]
[1743357380894,1.26786613,600.43,599.45,0.33363916]
[1743357381098,1.53828584,600.42,599.45,0.33363916]
[1743357381296,1.26786613,600.43,599.45,0.33363916]
[1743357381500,1.26786613,600.41,599.45,0.33363916]
[1743357382000,1.26786613,600.41,599.58,2.5305137]
[1743357382300,1.26786613,600.4,599.58,2.5305137]
[1743357383096,1.26786613,600.39,599.58,2.5305137]
[1743357384195,2.46406276,600.47,599.58,2.5305137]
[1743357384196,1.26786613,600.38,599.58,2.5305137]
[1743357385004,1.5409474,600.57,599.58,2.5305137]
[1743357385199,1.5409474,600.56,599.58,2.5305137]
[1743357385399,1.5409474,600.55,599.58,2.5305137]
[1743357385603,1.5409474,600.54,599.58,2.5305137]
[1743357385804,1.27538272,600.55,599.58,2.5305137]
[1743357386005,1.54169801,600.54,599.58,2.5305137]
[1743357386202,1.54163478,600.53,599.58,2.5305137]
[1743357386403,1.54162771,600.52,599.58,2.5305137]
[1743357386609,1.27538272,600.55,599.58,2.5305137]
[1743357386805,1.54224816,600.54,599.58,2.5305137]
[1743357387006,2.22924816,600.54,599.58,2.5305137]
[1743357387308,2.22924816,600.54,599.55,2.5305137]
[1743357387607,1.54272026,600.53,599.55,2.5305137]
[1743357387807,1.54272026,600.52,599.55,2.5305137]
[1743357388006,1.54272026,600.51,599.55,2.5305137]
[1743357388206,1.54272026,600.5,599.55,2.5305137]
[1743357388405,1.54272026,600.49,599.55,2.5305137]
[1743357388604,1.27538272,600.48,599.55,2.5305137]
[1743357389310,1.27538272,600.48,599.5,0.28998913]
[1743357389510,1.27538272,600.47,599.5,0.28998913]
[1743357390008,3.11138272,600.46,599.45,0.33363916]
[1743357390311,3.11138272,600.46,599.5,0.29001329]
[1743357390910,1.27538272,600.45,599.5,0.29001329]
[1743357391511,1.836,600.46,599.5,0.29001329]
[1743357392712,1.836,600.46,599.51,0.33360577]
[1743357395714,1.836,600.46,599.51,2.86411947]
[1743357397617,1.836,600.46,599.51,0.33360577]
[1743357403220,1.836,600.46,599.56,2.5305137]
[1743357403421,1.836,600.46,599.57,0.33357239]
[1743357408727,1.836,600.46,599.64,2.5305137]
[1743357410122,1.836,600.46,599.65,2.5305137]
[1743357410527,0.692,600.45,599.65,2.5305137]
[1743357411528,0.692,600.45,599.57,0.33357239]
[1743357412528,0.692,600.45,599.58,0.2899855]
[1743357414029,0.692,600.45,599.57,0.33357239]
[1743357415530,0.692,600.45,599.58,0.29001329]
[1743357416028,2.531,600.45,599.58,0.29001329]
[1743357416328,1.27222548,600.44,599.58,0.29001329]
[1743357416825,1.27222548,600.43,599.58,0.29001329]
[1743357417023,1.27222548,600.43,599.57,0.33357239]
[1743357417524,2.531,600.45,599.57,0.33357239]